fUSD/lending_fUSD_20250906
["ID","MTS","AMOUNT","RATE_DAILY","PERIOD"]
[383930744,1757179841069,-150.0,0.0002987,3]
[383930745,1757179841079,-150.0,0.0002987,3]
[383930746,1757179841089,-500.0,0.0002987,3]
[383930747,1757179841099,-500.0,0.0002987,3]
[383930748,1757179841109,-500.0,0.0002987,3]
[383930749,1757179841119,-500.0,0.0002987,3]
[383930750,1757179841129,-500.0,0.0002987,3]
[383930751,1757179841139,-150.0,0.0002987,3]
[383930752,1757179841150,-500.0,0.0002987,3]
[383930753,1757179841160,-150.0,0.0002987,3]
[383930754,1757179841170,-150.0,0.0002987,3]
[383930755,1757179841180,-546.0,0.0002987,3]
[383930756,1757179841189,-546.0,0.0002987,3]
[383930757,1757179841201,-546.0,0.0002987,3]
[383930758,1757179841211,-546.0,0.0002987,3]
[383930759,1757179841221,-664.27730878,0.0002987,3]
[383930760,1757179841231,-546.0,0.0002987,3]
[383930761,1757179841242,-546.0,0.0002987,3]
[383930762,1757179841251,-546.0,0.0002987,3]
[383930763,1757179841262,-546.0,0.0002987,3]
[383930764,1757179841271,-546.0,0.0002987,3]
[383930765,1757179841281,-546.0,0.0002987,3]
[383930766,1757179841291,-514.85095374,0.0002987,3]
[383930767,1757179841300,-546.0,0.0002987,3]
[383930768,1757179841311,-546.0,0.0002987,3]
[383930769,1757179841321,-212.67823062,0.0002987,3]
[383930770,1757179841331,-546.0,0.0002987,3]
[383930771,1757179841341,-546.0,0.0002987,3]
[383930772,1757179841350,-546.0,0.0002987,3]
[383930773,1757179841365,-219.62646551,0.0002987,3]
[383930774,1757179841375,-546.0,0.0002987,3]
[383930775,1757179841384,-546.0,0.0002987,3]
[383930776,1757179841395,-3011.38049103,0.0002987,3]
[383930777,1757179841406,-7000.0,0.0002987,2]
[383930778,1757179841416,-245.35459849,0.0002987,3]
[383930779,1757179841427,-153.0,0.0002987,3]
[383930780,1757179841438,-153.0,0.0002987,3]
[383930781,1757179841448,-155.0,0.0002987,3]
[383930782,1757179841459,-158.09129496,0.0002987,3]
[383930783,1757179841468,-153.0,0.0002987,3]
[383930784,1757179841478,-153.0,0.0002987,3]
[383930785,1757179841488,-155.0,0.0002987,3]
[383930786,1757179841499,-200.80141821,0.0002987,3]
[383930787,1757179841510,-500.0,0.00029873,5]
[383930788,1757179841520,-500.0,0.00029873,5]
[383930789,1757179841530,-500.0,0.00029873,5]
[383930790,1757179841540,-167.16424149,0.00029873,5]
[383930791,1757179841557,-160.47450641,0.00029873,5]
[383930792,1757179841574,-500.77782201,0.00029873,5]
[383930793,1757179841584,-166.41798901,0.00029873,2]
[383930794,1757179841594,-164.02018487,0.00029873,5]
[383930795,1757179841604,-500.0,0.00029873,5]
[383930796,1757179841614,-338.05398582,0.00029873,5]
[383930797,1757179841624,-544.81687817,0.00029873,5]
[383930798,1757179841633,-538.64102639,0.00029873,5]
[383930799,1757179841643,-500.0,0.00029873,5]
[383930800,1757179841653,-159.552256,0.00029873,5]
[383930801,1757179841662,-500.0,0.00029873,5]
[383930802,1757179841672,-500.0,0.00029873,5]
[383930803,1757179841682,-500.0,0.00029873,5]
[383930804,1757179841692,-1002.9769,0.00029879,2]
[383930805,1757179841701,-248198.87831111,0.0002988,2]
[383930806,1757179841711,-1059.29610807,0.00029888,2]
[383930807,1757179841721,-1800.0,0.000299,10]
[383930808,1757179841730,-1387.8,0.00029903,2]
[383930809,1757179841739,-1387.8,0.00029903,2]
[383930810,1757179841749,-1387.8,0.00029903,2]
[383930811,1757179841759,-1387.8,0.00029903,2]
[383930812,1757179841769,-1387.8,0.00029903,2]
[383930813,1757179841779,-1387.8,0.00029903,2]
[383930814,1757179841789,-1387.8,0.00029903,2]
[383930815,1757179841798,-1387.8,0.00029903,2]
[383930816,1757179841808,-1387.8,0.00029903,2]
[383930817,1757179841827,-1387.8,0.00029903,2]
[383930818,1757179841838,-1387.8,0.00029903,2]
[383930819,1757179841848,-1387.8,0.00029903,2]
[383930820,1757179841859,-1387.8,0.00029903,2]
[383930821,1757179841869,-1387.8,0.00029903,2]
[383930822,1757179841879,-1387.8,0.00029903,2]
[383930823,1757179841889,-1387.8,0.00029903,2]
[383930824,1757179841899,-1387.8,0.00029903,2]
[383930825,1757179841909,-1387.8,0.00029903,2]
[383930826,1757179841919,-1387.8,0.00029903,2]
[383930827,1757179841930,-1387.8,0.00029903,2]
[383930828,1757179841940,-1387.8,0.00029903,2]
[383930829,1757179841951,-1387.8,0.00029903,2]
[383930830,1757179841961,-1387.8,0.00029903,2]
[383930831,1757179841972,-1387.86355639,0.00029903,2]
[383930832,1757179841981,-7000.0,0.0002992,2]
[383930833,1757179841991,-421.02754985,0.00029955,2]
[383930834,1757179842005,-239.14845,0.00029971,2]
[383930835,1757179842014,-150.0,0.00029973,5]
[383930836,1757179842024,-500.0,0.00029999,2]
[383930837,1757179842034,-500.0,0.00029999,2]
[383930838,1757179842043,-352.31071291,0.00029999,2]
[383930839,1757179842053,-393.98018045,0.00029999,2]
[383930840,1757179842064,-500.0,0.00029999,2]
[383930841,1757179842073,-500.0,0.00029999,2]
[383930842,1757179842083,-500.0,0.00029999,2]
[383930843,1757179842093,-500.0,0.00029999,2]
[383930844,1757179842103,-500.0,0.00029999,2]
[383930845,1757179842113,-242.35848933,0.00029999,2]
[383930846,1757179842123,-582.81821911,0.00029999,2]
[383930847,1757179842133,-56548.93677182,0.0003,2]
[383930848,1757179842142,-4342.48242088,0.0003,30]
[383930849,1757179842152,-2399.999999,0.0003,2]
[383930850,1757179842162,-151.0,0.0003,14]
[383930851,1757179842171,-211.36,0.00030051,2]
[383930852,1757179842181,-600.0,0.00030069,2]
[383930853,1757179842192,-200.0,0.00030069,2]
[383930854,1757179842202,-200.0,0.00030069,2]
[383930855,1757179842212,-151.0,0.000301,14]
[383930856,1757179842222,-500.0,0.00030136,2]
[383930857,1757179842232,-150.0,0.00030136,2]
[383930858,1757179842243,-500.0,0.00030136,2]
[383930859,1757179842253,-500.0,0.00030136,2]
[383930860,1757179842264,-500.0,0.00030136,2]
[383930861,1757179842274,-150.0,0.00030136,2]
[383930862,1757179842284,-500.0,0.00030136,2]
[383930863,1757179842294,-500.0,0.00030136,2]
[383930864,1757179842304,-553.6227908,0.00030136,2]
[383930865,1757179842314,-150.0,0.00030136,2]
[383930866,1757179842324,-500.0,0.00030136,2]
[383930867,1757179842334,-500.0,0.00030136,2]
[383930868,1757179842344,-150.0,0.00030136,2]
[383930869,1757179842355,-500.0,0.00030136,2]
[383930870,1757179842364,-500.0,0.00030136,2]
[383930872,1757179842374,-500.0,0.00030136,2]
[383930873,1757179842384,-500.0,0.00030136,2]
[383930874,1757179842394,-500.0,0.00030136,2]
[383930876,1757179842405,-150.0,0.00030136,2]
[383930877,1757179842415,-500.0,0.00030136,2]
[383930878,1757179842425,-500.0,0.00030136,2]
[383930879,1757179842434,-500.0,0.00030136,2]
[383930880,1757179842444,-258.15019611,0.00030136,2]
[383930881,1757179842454,-1291.0,0.00030136,2]
[383930882,1757179842464,-500.0,0.00030136,2]
[383930883,1757179842474,-500.0,0.00030136,2]
[383930884,1757179842483,-500.0,0.00030136,2]
[383930885,1757179842494,-1477.0,0.00030136,2]
[383930886,1757179842503,-645.0,0.00030136,2]
[383930887,1757179842513,-514.85095374,0.00030144,3]
[383930888,1757179842523,-150.0,0.00030144,3]
[383930889,1757179842532,-150.0,0.00030144,3]
[383930890,1757179842542,-150.0,0.00030144,3]
[383930891,1757179842551,-150.0,0.00030144,3]
[383930892,1757179842561,-150.0,0.00030144,3]
[383930893,1757179842571,-500.0,0.00030144,3]
[383930894,1757179842583,-500.0,0.00030144,3]
[383930895,1757179842593,-500.0,0.00030144,3]
[383930896,1757179842603,-500.0,0.00030144,3]
[383930897,1757179842614,-500.0,0.00030144,3]
[383930898,1757179842624,-150.0,0.00030144,3]
[383930899,1757179842634,-500.0,0.00030144,3]
[383930900,1757179842643,-150.0,0.00030144,3]
[383930901,1757179842653,-150.12073758,0.00030144,3]
[383930902,1757179842663,-450.0,0.00030157,2]
[383930903,1757179842673,-200.0,0.00030169,2]
[383930904,1757179842682,-1781.944,0.0003019,25]
[383930905,1757179842692,-187.954,0.0003019,25]
[383930906,1757179842702,-3476.30033702,0.00030321,2]
[383930907,1757179842712,-322.6107,0.00030338,2]
[383930908,1757179842722,-151.0,0.00030338,2]
[383930909,1757179842732,-500.0,0.00030338,2]
[383930910,1757179842742,-151.0,0.00030338,2]
[383930911,1757179842751,-160.0,0.00030338,2]
[383930912,1757179842762,-151.0,0.00030338,2]
[383930913,1757179842772,-500.0,0.00030338,2]
[383930914,1757179842783,-151.0,0.00030338,2]
[383930915,1757179842792,-151.0,0.00030338,2]
[383930916,1757179842802,-500.0,0.00030338,2]
[383930917,1757179842812,-151.0,0.00030338,2]
[383930918,1757179842822,-500.0,0.00030338,2]
[383930919,1757179842831,-151.0,0.00030338,2]
[383930920,1757179842841,-500.0,0.00030338,2]
[383930921,1757179842851,-151.0,0.00030338,2]
[383930922,1757179842860,-151.0,0.00030338,2]
[383930923,1757179842870,-500.0,0.00030338,2]
[383930924,1757179842880,-151.0,0.00030338,2]
[383930926,1757179842889,-151.0,0.00030338,2]
[383930927,1757179842900,-500.0,0.00030338,2]
[383930928,1757179842910,-151.0,0.00030338,2]
[383930929,1757179842920,-151.0,0.00030338,2]
[383930930,1757179842930,-500.0,0.00030338,2]
[383930932,1757179842940,-500.0,0.00030338,2]
[383930933,1757179842950,-151.0,0.00030338,2]
[383930934,1757179842960,-500.0,0.00030338,2]
[383930935,1757179842970,-151.0,0.00030338,2]
[383930936,1757179842981,-500.0,0.00030338,2]
[383930937,1757179842992,-151.0,0.00030338,2]
[383930938,1757179843011,-151.50990684,0.00030338,2]
[383930939,1757179843031,-3000.0,0.00030338,2]
[383930940,1757179843053,-267.46074303,0.00030338,2]
[383930941,1757179843069,-695.39793187,0.00030338,2]
[383930942,1757179843079,-250.0,0.00030338,2]
[383930943,1757179843089,-250.0,0.00030338,2]
[383930944,1757179843099,-250.0,0.00030338,2]
[383930945,1757179843110,-250.0,0.00030338,2]
[383930946,1757179843119,-250.0,0.00030338,2]
[383930947,1757179843130,-250.0,0.00030338,2]
[383930948,1757179843140,-250.0,0.00030338,2]
[383930949,1757179843151,-250.0,0.00030338,2]
[383930950,1757179843161,-250.0,0.00030338,2]
[383930951,1757179843172,-250.0,0.00030338,2]
[383930952,1757179843182,-250.0,0.00030338,2]
[383930953,1757179843192,-250.0,0.00030338,2]
[383930954,1757179843203,-250.0,0.00030338,2]
[383930955,1757179843214,-201.93286098,0.00030338,2]
[383930956,1757179843224,-1000.0,0.00030338,2]
[383930957,1757179843234,-193.04544289,0.00030338,2]
[383930958,1757179843244,-1000.0,0.00030338,2]
[383930959,1757179843254,-250.0,0.00030338,2]
[383930960,1757179843264,-1000.0,0.00030338,2]
[383930961,1757179843274,-1000.0,0.00030338,2]
[383930962,1757179843284,-1000.0,0.00030338,2]
[383930963,1757179843294,-1000.0,0.00030338,2]
[383930964,1757179843304,-308.73183728,0.00030338,2]
[383930965,1757179843314,-250.0,0.00030338,2]
[383930966,1757179843324,-264.37230147,0.00030338,2]
[383930967,1757179843333,-600.0,0.00030387,2]
[383930968,1757179843343,-161.75,0.00030387,2]
[383930969,1757179843353,-500.0,0.0003041,2]
[383930970,1757179843363,-296.31102221,0.0003041,2]
[383930971,1757179843373,-500.0,0.0003041,2]
[383930972,1757179843383,-500.0,0.0003041,2]
[383930973,1757179843393,-505.51516275,0.0003041,2]
[383930974,1757179843403,-150.82227448,0.0003041,2]
[383930975,1757179843413,-500.0,0.0003041,2]
[383930976,1757179843423,-500.0,0.0003041,2]
[383930977,1757179843672,-150.0,0.0003041,2]
[383930978,1757179843706,-455.26566643,0.0003041,2]
[383930979,1757179843715,-500.0,0.0003041,2]
[383930980,1757179843724,-150.0,0.0003041,2]
[383930981,1757179843733,-500.0,0.0003041,2]
[383930982,1757179843742,-500.0,0.0003041,2]
[383930983,1757179843751,-500.0,0.0003041,2]
[383930984,1757179843761,-500.0,0.0003041,2]
[383930985,1757179843770,-414.42960542,0.0003041,2]
[383930986,1757179843779,-201.68664424,0.0003041,2]
[383930987,1757179843788,-500.0,0.0003041,2]
[383930988,1757179843797,-500.0,0.0003041,2]
[383930989,1757179843806,-500.0,0.0003041,2]
[383930990,1757179843815,-1291.0,0.0003041,2]
[383930991,1757179843824,-500.0,0.0003041,2]
[383930992,1757179843833,-500.0,0.0003041,2]
[383930993,1757179843842,-500.0,0.0003041,2]
[383930994,1757179843852,-1477.0,0.0003041,2]
[383930995,1757179843861,-645.0,0.0003041,2]
[383930996,1757179843870,-150.0,0.00030417,2]
[383930997,1757179843879,-150.0,0.00030418,3]
[383930998,1757179843888,-251.61319408,0.00030418,3]
[383930999,1757179843897,-150.0,0.00030418,3]
[383931000,1757179843906,-253.51431984,0.00030418,3]
[383931001,1757179843915,-500.0,0.00030418,3]
[383931002,1757179843925,-500.0,0.00030418,3]
[383931003,1757179843934,-500.0,0.00030418,3]
[383931004,1757179843943,-151.60424676,0.00030418,3]
[383931005,1757179843952,-500.0,0.00030418,3]
[383931006,1757179843962,-150.0,0.00030418,3]
[383931007,1757179843971,-500.0,0.00030418,3]
[383931008,1757179843980,-210.7891279,0.00030418,3]
[383931009,1757179843990,-3011.38049103,0.00030418,3]
[383931010,1757179844002,-215.233605,0.00030418,2]
[383931011,1757179844012,-7000.0,0.0003042,2]
[383931012,1757179844021,-1000.0,0.00030421,5]
[383931013,1757179844030,-1000.0,0.00030421,5]
[383931014,1757179844040,-1000.0,0.00030421,5]
[383931015,1757179844051,-409.3417178,0.00030421,5]
[383931016,1757179844060,-500.56041119,0.00030421,5]
[383931017,1757179844070,-1000.0,0.00030421,5]
[383931018,1757179844080,-500.0,0.00030431,3]
[383931019,1757179844089,-200.0,0.0003047,2]
[383931020,1757179844099,-152.37191228,0.00030471,5]
[383931021,1757179844109,-500.0,0.00030471,5]
[383931022,1757179844119,-22476.90620554,0.00030493,2]
[383931023,1757179844130,-250.0,0.00030521,5]
[383931024,1757179844140,-714.5618696,0.00030603,2]
[383931025,1757179844150,-600.0,0.00030617,2]
[383931026,1757179844159,-200.0,0.00030617,2]
[383931027,1757179844170,-200.0,0.00030617,2]
[383931028,1757179844180,-2500.0,0.00030618,3]
[383931029,1757179844190,-2500.0,0.00030618,3]
[383931030,1757179844200,-3421.59,0.0003062,2]
[383931031,1757179844210,-10003.32,0.0003062,20]
[383931032,1757179844219,-4915.72,0.0003062,2]
[383931033,1757179844230,-3112.4,0.0003062,2]
[383931034,1757179844240,-1504.14,0.0003062,2]
[383931035,1757179844250,-151.29,0.0003062,12]
[383931036,1757179844262,-13692.46,0.0003062,2]
[383931037,1757179844271,-503.08,0.0003062,2]
[383931038,1757179844282,-9999.99,0.0003062,2]
[383931039,1757179844292,-499.99,0.0003062,2]
[383931040,1757179844303,-1173.44,0.0003062,2]
[383931041,1757179844313,-999.99,0.0003062,2]
[383931042,1757179844324,-9999.99,0.0003062,2]
[383931043,1757179844335,-2290.48,0.0003062,2]
[383931044,1757179844345,-9999.99,0.0003062,2]
[383931045,1757179844354,-340.98,0.0003062,2]
[383931046,1757179844364,-150.99,0.0003062,2]
[383931047,1757179844374,-159313.53,0.0003062,10]
[383931048,1757179844384,-154233.64,0.0003062,2]
[383931049,1757179844394,-9999.99,0.0003062,2]
[383931050,1757179844404,-8729.07,0.0003062,2]
[383931051,1757179844413,-2911.94,0.0003062,2]
[383931052,1757179844423,-150.99,0.0003062,2]
[383931053,1757179844433,-166.67,0.00030633,2]
[383931054,1757179844443,-500.0,0.00030684,2]
[383931055,1757179844453,-500.0,0.00030684,2]
[383931056,1757179844463,-500.0,0.00030684,2]
[383931057,1757179844473,-500.0,0.00030684,2]
[383931058,1757179844483,-500.0,0.00030684,2]
[383931059,1757179844493,-151.88234701,0.00030684,2]
[383931060,1757179844503,-384.56981064,0.00030684,2]
[383931061,1757179844513,-204.5099004,0.00030684,2]
[383931062,1757179844523,-500.0,0.00030684,2]
[383931063,1757179844534,-500.0,0.00030684,2]
[383931064,1757179844544,-416.0834797,0.00030684,2]
[383931065,1757179844553,-500.0,0.00030684,2]
[383931066,1757179844563,-500.0,0.00030684,2]
[383931067,1757179844573,-540.02534851,0.00030684,2]
[383931068,1757179844583,-305.19971377,0.00030684,2]
[383931069,1757179844594,-1291.0,0.00030684,2]
[383931070,1757179844604,-500.0,0.00030684,2]
[383931071,1757179844614,-500.0,0.00030684,2]
[383931072,1757179844623,-614.3894205,0.00030684,2]
[383931073,1757179844633,-1477.0,0.00030684,2]
[383931074,1757179844643,-645.0,0.00030684,2]
[383931075,1757179844654,-150.0,0.00030684,120]
[383931076,1757179844663,-251.33219181,0.00030692,3]
[383931077,1757179844673,-150.0,0.00030692,3]
[383931078,1757179844683,-500.0,0.00030692,3]
[383931079,1757179844693,-500.0,0.00030692,3]
[383931080,1757179844702,-500.0,0.00030692,3]
[383931081,1757179844712,-500.0,0.00030692,3]
[383931082,1757179844723,-172.17296631,0.00030692,3]
[383931083,1757179844733,-211.82200047,0.00030692,3]
[383931084,1757179844744,-736.55,0.000307,30]
[383931085,1757179844754,-2076.51,0.000307,7]
[383931086,1757179844763,-500.0,0.00030742,5]
[383931087,1757179844774,-500.0,0.00030742,5]
[383931088,1757179844784,-175.70608037,0.00030756,2]
[383931089,1757179844794,-200.0,0.00030775,2]
[383931090,1757179844803,-2000.0,0.000308,2]
[383931091,1757179844813,-166.66,0.0003082,2]
[383931092,1757179844823,-150.0,0.00030821,120]
[383931093,1757179844833,-332.38,0.00030827,2]
[383931094,1757179844843,-500.0,0.00030838,5]
[383931095,1757179844852,-302.74843935,0.00030838,5]
[383931096,1757179844862,-500.0,0.00030838,5]
[383931097,1757179844872,-193.7102445,0.00030865,2]
[383931098,1757179844882,-151.0,0.00030886,2]
[383931099,1757179844892,-7000.0,0.0003092,2]
[383931100,1757179844902,-500.0,0.00030958,2]
[383931101,1757179844912,-500.0,0.00030958,2]
[383931102,1757179844921,-500.0,0.00030958,2]
[383931103,1757179844931,-500.0,0.00030958,2]
[383931104,1757179844942,-500.0,0.00030958,2]
[383931105,1757179844952,-500.0,0.00030958,2]
[383931106,1757179844962,-500.0,0.00030958,2]
[383931107,1757179844972,-500.0,0.00030958,2]
[383931108,1757179844981,-500.0,0.00030958,2]
[383931109,1757179844991,-1291.0,0.00030958,2]
[383931110,1757179845004,-500.0,0.00030958,2]
[383931111,1757179845014,-500.0,0.00030958,2]
[383931112,1757179845024,-1477.0,0.00030958,2]
[383931113,1757179845033,-645.0,0.00030958,2]
[383931114,1757179845043,-175.72126501,0.00030958,120]
[383931115,1757179845053,-211.77691621,0.00030966,3]
[383931116,1757179845062,-500.0,0.00030966,3]
[383931117,1757179845072,-610.91696358,0.00030966,3]
[383931118,1757179845082,-500.0,0.00030966,3]
[383931119,1757179845092,-500.0,0.00030966,3]
[383931120,1757179845102,-1500.0,0.00030968,5]
[383931121,1757179845111,-1500.0,0.00030968,5]
[383931122,1757179845121,-1500.0,0.00030968,5]
[383931123,1757179845131,-326.29267021,0.00030968,5]
[383931124,1757179845140,-463.60515785,0.00030979,3]
[383931125,1757179845150,-2300.02198983,0.00031,14]
[383931126,1757179845160,-1907.30083809,0.00031,2]
[383931127,1757179845169,-8136.89,0.00031,2]
[383931128,1757179845179,-168.0,0.00031004,2]
[383931129,1757179845188,-350.0,0.00031068,5]
[383931131,1757179845198,-200.0,0.00031083,2]
[383931133,1757179845208,-207.4,0.00031164,2]
[383931134,1757179845218,-600.0,0.00031165,2]
[383931135,1757179845228,-200.0,0.00031165,2]
[383931136,1757179845237,-200.0,0.00031165,2]
[383931137,1757179845247,-5781.63202133,0.0003121,2]
[383931138,1757179845257,-6453.0,0.00031217,3]
[383931139,1757179845267,-500.0,0.00031232,2]
[383931140,1757179845277,-500.0,0.00031232,2]
[383931141,1757179845287,-500.0,0.00031232,2]
[383931142,1757179845297,-500.0,0.00031232,2]
[383931143,1757179845307,-500.0,0.00031232,2]
[383931144,1757179845317,-500.0,0.00031232,2]
[383931145,1757179845327,-500.0,0.00031232,2]
[383931146,1757179845338,-500.0,0.00031232,2]
[383931147,1757179845352,-500.0,0.00031232,2]
[383931148,1757179845362,-1291.0,0.00031232,2]
[383931149,1757179845374,-500.0,0.00031232,2]
[383931150,1757179845385,-500.0,0.00031232,2]
[383931151,1757179845395,-1477.0,0.00031232,2]
[383931152,1757179845404,-645.0,0.00031232,2]
[383931153,1757179845414,-500.0,0.0003124,3]
[383931155,1757179845424,-500.0,0.0003124,3]
[383931157,1757179845433,-439.26496662,0.0003124,3]
[383931159,1757179845442,-1059.29610807,0.00031254,2]
[383931161,1757179845451,-250.0,0.0003129,5]
[383931162,1757179845461,-432.52438624,0.0003129,5]
[383931163,1757179845471,-1000.0,0.00031385,5]
[383931164,1757179845481,-511.74801761,0.00031385,5]
[383931165,1757179845490,-14090.95280124,0.000314,30]
[383931166,1757179845500,-7000.0,0.0003142,2]
[383931167,1757179845510,-151.0,0.00031434,2]
[383931168,1757179845519,-423.19,0.00031437,2]
[383931169,1757179845528,-789.78301001,0.00031465,30]
[383931170,1757179845538,-211.36,0.00031482,2]
[383931171,1757179845547,-5614.0,0.00031485,2]
[383931172,1757179845557,-514.85095374,0.000315,10]
[383931173,1757179845566,-212.67823062,0.000315,10]
[383931174,1757179845576,-3011.38049103,0.000315,10]
[383931175,1757179845586,-150.0,0.000315,2]
[383931176,1757179845595,-500.0,0.00031506,2]
[383931177,1757179845605,-500.0,0.00031506,2]
[383931178,1757179845614,-500.0,0.00031506,2]
[383931179,1757179845623,-500.0,0.00031506,2]
[383931180,1757179845632,-500.0,0.00031506,2]
[383931181,1757179845642,-500.0,0.00031506,2]
[383931182,1757179845652,-500.0,0.00031506,2]
[383931183,1757179845661,-500.0,0.00031506,2]
[383931184,1757179845671,-1291.0,0.00031506,2]
[383931185,1757179845680,-500.0,0.00031506,2]
[383931186,1757179845690,-500.0,0.00031506,2]
[383931187,1757179845700,-1477.0,0.00031506,2]
[383931188,1757179845709,-645.0,0.00031506,2]
[383931189,1757179845719,-940.9,0.00031507,2]
[383931190,1757179845729,-802.0,0.00031507,2]
[383931191,1757179845739,-166.21530277,0.00031514,3]
[383931192,1757179845752,-500.0,0.00031514,3]
[383931193,1757179845762,-237.49233191,0.00031516,5]
[383931194,1757179845771,-479.21041582,0.00031516,5]
[383931195,1757179845781,-2000.0,0.00031516,5]
[383931196,1757179845791,-178.71,0.00031571,2]
[383931197,1757179845801,-423.19,0.00031578,2]
[383931198,1757179845811,-451.6568342,0.00031616,5]
[383931199,1757179845821,-736.55,0.000317,30]
[383931200,1757179845831,-2076.51,0.000317,7]
[383931201,1757179845840,-334.5472959,0.00031707,2]
[383931202,1757179845853,-160.0,0.00031707,2]
[383931203,1757179845862,-3111.0,0.00031707,2]
[383931204,1757179845872,-277.35679052,0.00031707,2]
[383931205,1757179845883,-600.0,0.00031713,2]
[383931206,1757179845892,-200.0,0.00031713,2]
[383931207,1757179845902,-200.0,0.00031713,2]
[383931208,1757179845914,-423.19,0.00031719,2]
[383931209,1757179845924,-3476.30033701,0.00031744,2]
[383931210,1757179845933,-500.0,0.0003178,2]
[383931211,1757179845943,-500.0,0.0003178,2]
[383931212,1757179845952,-500.0,0.0003178,2]
[383931213,1757179845962,-500.0,0.0003178,2]
[383931214,1757179845971,-607.33045923,0.0003178,2]
[383931215,1757179845981,-500.0,0.0003178,2]
[383931216,1757179845991,-500.0,0.0003178,2]
[383931217,1757179846004,-500.0,0.0003178,2]
[383931218,1757179846014,-1291.0,0.0003178,2]
[383931219,1757179846023,-500.0,0.0003178,2]
[383931220,1757179846033,-500.0,0.0003178,2]
[383931221,1757179846042,-1477.0,0.0003178,2]
[383931222,1757179846051,-645.0,0.0003178,2]
[383931223,1757179846061,-500.0,0.00031788,3]
[383931224,1757179846071,-411.99607889,0.0003186,120]
[383931225,1757179846080,-2400.0,0.000319,11]
[383931226,1757179846090,-8136.89,0.000319,2]
[383931227,1757179846099,-332.38,0.00031903,2]
[383931228,1757179846109,-5612.0,0.00031917,2]
[383931229,1757179846119,-7000.0,0.0003192,2]
[383931231,1757179846128,-758.99869233,0.00031933,5]
[383931233,1757179846138,-166.66,0.00031952,2]
[383931235,1757179846148,-151.0,0.00031982,2]
[383931237,1757179846157,-175.0,0.00032,14]
[383931239,1757179846167,-2012.35023504,0.00032,2]
[383931241,1757179846177,-163.0,0.00032,14]
[383931242,1757179846186,-500.0,0.00032054,2]
[383931244,1757179846195,-186.35095828,0.00032054,2]
[383931246,1757179846205,-271.72922314,0.00032054,2]
[383931248,1757179846214,-500.0,0.00032054,2]
[383931250,1757179846224,-500.0,0.00032054,2]
[383931252,1757179846234,-500.0,0.00032054,2]
[383931254,1757179846244,-500.0,0.00032054,2]
[383931256,1757179846253,-1291.0,0.00032054,2]
[383931257,1757179846263,-500.0,0.00032054,2]
[383931259,1757179846272,-500.0,0.00032054,2]
[383931261,1757179846281,-1477.0,0.00032054,2]
[383931263,1757179846291,-645.0,0.00032054,2]
[383931265,1757179846300,-500.0,0.00032062,3]
[383931267,1757179846310,-2500.0,0.00032064,5]
[383931268,1757179846320,-4201.0,0.000321,5]
[383931269,1757179846329,-6711.0,0.00032192,2]
[383931270,1757179846338,-10294.0,0.00032192,2]
[383931271,1757179846348,-1366.0,0.000322,2]